Workbook

Sheet Manual Calculations (hidden)
H2: CHIEF DIRECTORATE: SECURITY RISK MANAGEMENT
H3: Provincial Security Provisioning
B7: Current Amount | C7: Guards Day | D7: Per Guard
A8: Grade A Day | B8: 0 | C8: 0 | D8: =IF(B8=0,0,(B8/C8)) -> 0 | H8: =A8 -> Grade A Day
A9: Grade B Day | B9: R 16,253.30 | C9: 1 | D9: =IF(B9=0,0,(B9/C9)) -> R 16,253.30 | H9: =A9 -> Grade B Day
A10: Grade C Day | B10: R 507,693.60 | C10: 36 | D10: =IF(B10=0,0,(B10/C10)) -> R 14,102.60 | H10: =A10 -> Grade C Day
A11: Grade D Day | B11: 0 | C11: 0 | D11: =IF(B11=0,0,(B11/C11)) -> 0 | H11: =A11 -> Grade D Day
A12: Grade E Day | B12: 0 | C12: 0 | H12: =A12 -> Grade E Day
B13: =SUM(B8:B12) -> R 523,946.90 | C13: =SUM(C8:C12) -> 37 | D13: =SUM(D8:D12) -> R 30,355.90 | H13: =A16 -> Grade A Night
H14: =A17 -> Grade B Night
B15: Current Amount | C15: Guards Night | D15: Per Guard | F15: Monthly Cost | H15: =A18 -> Grade C Night
A16: Grade A Night | B16: 0 | C16: 0 | D16: =IF(B16=0,0,(B16/C16)) -> 0 | F16: =SUM(B8,B16) -> 0 | H16: =A19 -> Grade D Night
A17: Grade B Night | B17: 0 | C17: 0 | D17: =IF(B17=0,0,(B17/C17)) -> 0 | F17: =SUM(B9,B17) -> R 16,253.30 | H17: =A20 -> Grade E Night
A18: Grade C Night | B18: R 244,109.80 | C18: 17 | D18: =IF(B18=0,0,(B18/C18)) -> R 14,359.40 | F18: =SUM(B10,B18) -> R 751,803.40
A19: Grade D Night | B19: 0 | C19: 0 | D19: =IF(B19=0,0,(B19/C19)) -> 0 | F19: =SUM(B11,B19) -> 0
A20: Grade E Night | B20: 0 | C20: 0 | F20: =SUM(B12,B20) -> 0
B21: =SUM(B16:B20) -> R 244,109.80 | C21: =SUM(C16:C20) -> 17 | D21: =SUM(D16:D20) -> R 14,359.40 | F21: =SUM(F16:F20) -> R 768,056.70
A24: Heideveld High School | D24: Hourly PSIRA rate as of 1 September 2017
A25: Description | B25: PSIRA Grade | C25: Total hours | D25: Rate per hour | E25: Rate per day | F25: Rate per week | G25: Cost per week
A26: Private Security Officer | B26: Grade C Day | C26: 4 | D26: R 34.75 | E26: R 394.82 | F26: =E26*5 -> R 1,974.10 | G26: =F26*C26 -> R 7,896.40
A27: Transport Included in costing | C27: Cost Breakdown
B28: 8 Hours per Day Monday to Friday | D28: 2017-09-04 | E28: 2017-09-29 | F28: =G26*4 -> R 31,585.60
D29: 2017-10-09 | E29: 2017-10-27 | F29: =G26*3 -> R 23,689.20
D30: 2017-10-30 | E30: 2017-11-24 | F30: =G26*4 -> R 31,585.60
D31: 2017-11-27 | E31: 2017-11-30 | F31: =E26*4*C26 -> R 6,317.12
B32: Total Cost of Outsourced Deployment | F32: =SUM(F28:F31) -> R 93,177.52 | H32: R 394.82
B37: Grade B Day | C37: Grade C Day | D37: Grade C Night | E37: Grade D Day | F37: Grade D Day
A38: Cost per month | B38: =IF(B37="","",VLOOKUP(B37,$A$8:$D$20,4,FALSE)) -> R 16,253.30 | C38: =IF(C37="","",VLOOKUP(C37,$A$8:$D$20,4,FALSE)) -> R 14,102.60 | D38: =IF(D37="","",VLOOKUP(D37,$A$8:$D$20,4,FALSE)) -> R 14,359.40 | E38: =IF(E37="","",VLOOKUP(E37,$A$8:$D$20,4,FALSE)) -> 0 | F38: =IF(F37="","",VLOOKUP(F37,$A$8:$D$20,4,FALSE)) -> 0
A39: Guards | B39: 1 | C39: 8 | D39: 4 | E39: 8 | F39: 8
A40: Cost for guards | B40: =IF(B38="","",B38*B39) -> R 16,253.30 | C40: =IF(C38="","",C38*C39) -> R 112,820.80 | D40: =IF(D38="","",D38*D39) -> R 57,437.60 | E40: =IF(E38="","",E38*E39) -> 0 | F40: =IF(F38="","",F38*F39) -> 0
A41: Period | B41: 3 | C41: 3 | D41: 3 | E41: 3 | F41: 3
A42: Cost for period | B42: =IF(B40="","",B40*B41) -> R 48,759.90 | C42: =IF(C40="","",C40*C41) -> R 338,462.40 | D42: =IF(D40="","",D40*D41) -> R 172,312.80 | E42: =IF(E40="","",E40*E41) -> 0 | F42: =IF(F40="","",F40*F41) -> 0
A46: Heideveld High School | D46: Hourly PSIRA rate as of 1 September 2017
A47: Description | B47: PSIRA Grade | C47: Total hours | D47: Rate per hour | E47: Rate per day 8 hrs | F47: Rate per day 4 hours
A48: Private Security Officer | B48: Grade C Day | C48: 4 | D48: R 34.75 | E48: R 417.05 | F48: =E48/2 -> R 208.53
A49: Transport Included in costing | C49: Cost Breakdown
B50: 8 Hours per Day Monday to Friday | D50: September | E50: 21 | F50: =$F$48*E50 -> R 4,379.03 | G50: =F50*$C$48 -> R 17,516.10
D51: October | E51: 17 | F51: =$F$48*E51 -> R 3,544.93 | G51: =F51*$C$48 -> R 14,179.70
D52: November | E52: 22 | F52: =$F$48*E52 -> R 4,587.55 | G52: =F52*$C$48 -> R 18,350.20
D53: Total Days | E53: =SUM(E50:E52) -> 60
B54: Total Cost of Outsourced Deployment | F54: =SUM(F50:F52) -> R 12,511.50 | G54: =SUM(G50:G52) -> R 50,046.00
A57: Heideveld High School | D57: Hourly PSIRA rate as of 1 September 2017
A58: Description | B58: PSIRA Grade | C58: Total hours | D58: Rate per hour | E58: Rate per day 12 hrs | F58: Rate per day 4 hours
A59: Private Security Officer | B59: Grade C Day | C59: 4 | D59: =#REF! ->  | E59: =#REF! ->  | F59: =(E59/12)*4 -> 
A60: Transport Included in costing | C60: Cost Breakdown
B61: 8 Hours per Day Monday to Friday | D61: September | E61: 21 | F61: =$F$59*E61 ->  | G61: =F61*$C$59 -> 
D62: October | E62: 17 | F62: =$F$59*E62 ->  | G62: =F62*$C$59 -> 
D63: November | E63: 22 | F63: =$F$59*E63 ->  | G63: =F63*$C$59 -> 
D64: Total Days | E64: =SUM(E61:E63) -> 60
B65: Total Cost of Outsourced Deployment | F65: =SUM(F61:F63) ->  | G65: =SUM(G61:G63) -> 

Sheet Urban Calculation (hidden)
B2: Day Shift Calculation | D2: Monday to Sunday | E2: Grade
E3: A | F3: B | G3: C
B4: Day Shift | C4: excluding nightshift | E4: =#REF!-#REF! ->  | F4: =#REF!-#REF! ->  | G4: =#REF!-#REF! -> 
B5: 14% tax | C5: inclusive | E5: =E4*14% ->  | F5: =F4*14% ->  | G5: =G4*14% -> 
B6: =B17 -> Total Direct Cost | C6: =C4 -> excluding nightshift | D6: Per guard | E6: =E4+E5 ->  | F6: =F4+F5 ->  | G6: =G4+G5 -> 
B7: Guards | E7: =#REF! ->  | F7: =#REF! ->  | G7: =#REF! -> 
B8: =B6 -> Total Direct Cost | C8: =C6 -> excluding nightshift | D8: =D19 -> per month | E8: =E6*E7 ->  | F8: =F6*F7 ->  | G8: =G6*G7 -> 
B9: =B20 -> Overheads | C9: =C20 -> (please complete your percentage above in E3) | E9: =E8*#REF! ->  | F9: =F8*#REF! ->  | G9: =G8*#REF! -> 
B10: Total Cost per month | C10: =B2 -> Day Shift Calculation | D10: =D2 -> Monday to Sunday | E10: =SUM(E8:E9) ->  | F10: =SUM(F8:F9) ->  | G10: =SUM(G8:G9) -> 
E11: =IF(E6,E6+(E6*#REF!),0) ->  | F11: =IF(F6,F6+(F6*#REF!),0) ->  | G11: =IF(G6,G6+(G6*#REF!),0) -> 
B13: Night Shift Calculation | D13: Monday to Sunday | E13: Grade
E14: A | F14: B | G14: C
B15: Night Shift | E15: =#REF! ->  | F15: =#REF! ->  | G15: =#REF! -> 
B16: 14% tax | C16: inclusive | E16: =E15*14% ->  | F16: =F15*14% ->  | G16: =G15*14% -> 
B17: Total Direct Cost | D17: Per guard | E17: =E15+E16 ->  | F17: =F15+F16 ->  | G17: =G15+G16 -> 
B18: Guards | E18: =#REF! ->  | F18: =#REF! ->  | G18: =#REF! -> 
B19: =B17 -> Total Direct Cost | D19: per month | E19: =E17*E18 ->  | F19: =F17*F18 ->  | G19: =G17*G18 -> 
B20: Overheads | C20: (please complete your percentage above in E3) | E20: =E19*#REF! ->  | F20: =F19*#REF! ->  | G20: =G19*#REF! -> 
B21: Total Cost per month | C21: =B13 -> Night Shift Calculation | D21: =D13 -> Monday to Sunday | E21: =SUM(E19:E20) ->  | F21: =SUM(F19:F20) ->  | G21: =SUM(G19:G20) -> 
E22: =IF(E17,E17+(E17*#REF!),0) ->  | F22: =IF(F17,F17+(F17*#REF!),0) ->  | G22: =IF(G17,G17+(G17*#REF!),0) -> 
B24: Day Shift Calculation | D24: Monday to Friday | E24: Grade
E25: A | F25: B | G25: C
B26: Day Shift | C26: excluding Night allowance, Sunday allowance and public holidays | E26: =#REF!-#REF!-#REF!-#REF! ->  | F26: =#REF!-#REF!-#REF!-#REF! ->  | G26: =#REF!-#REF!-#REF!-#REF! -> 
B27: 14% tax | C27: inclusive | E27: =E26*14% ->  | F27: =F26*14% ->  | G27: =G26*14% -> 
B28: Total Direct Cost | D28: Per guard | E28: =E26+E27 ->  | F28: =F26+F27 ->  | G28: =G26+G27 -> 
B29: Guards | E29: =#REF! ->  | F29: =#REF! ->  | G29: =#REF! -> 
B30: =B19 -> Total Direct Cost | D30: per month | E30: =E28*E29 ->  | F30: =F28*F29 ->  | G30: =G28*G29 -> 
B31: Overheads | C31: (please complete your percentage above in E3) | E31: =E30*#REF! ->  | F31: =F30*#REF! ->  | G31: =G30*#REF! -> 
B32: Total Cost per month | C32: =B24 -> Day Shift Calculation | D32: =D24 -> Monday to Friday | E32: =SUM(E30:E31) ->  | F32: =SUM(F30:F31) ->  | G32: =SUM(G30:G31) -> 
E33: =IF(E28,E28+(E28*#REF!),0) ->  | F33: =IF(F28,F28+(F28*#REF!),0) ->  | G33: =IF(G28,G28+(G28*#REF!),0) -> 
B35: Night Shift Calculation | D35: Monday to Friday | E35: Grade
E36: A | F36: B | G36: C
B37: Night Shift | C37: excluding Sunday allowance and public holidays | E37: =#REF!-#REF!-#REF! ->  | F37: =#REF!-#REF!-#REF! ->  | G37: =#REF!-#REF!-#REF! -> 
B38: 14% tax | C38: inclusive | E38: =E37*14% ->  | F38: =F37*14% ->  | G38: =G37*14% -> 
B39: Total Direct Cost | D39: Per guard | E39: =E37+E38 ->  | F39: =F37+F38 ->  | G39: =G37+G38 -> 
B40: Guards | E40: =#REF! ->  | F40: =#REF! ->  | G40: =#REF! -> 
B41: =B39 -> Total Direct Cost | D41: per month | E41: =E39*E40 ->  | F41: =F39*F40 ->  | G41: =G39*G40 -> 
B42: Overheads | C42: (please complete your percentage above in E3) | E42: =E41*#REF! ->  | F42: =F41*#REF! ->  | G42: =G41*#REF! -> 
B43: Total Cost per month | C43: =B35 -> Night Shift Calculation | D43: =D35 -> Monday to Friday | E43: =SUM(E41:E42) ->  | F43: =SUM(F41:F42) ->  | G43: =SUM(G41:G42) -> 
E44: =IF(E39,E39+(E39*#REF!),0) ->  | F44: =IF(F39,F39+(F39*#REF!),0) ->  | G44: =IF(G39,G39+(G39*#REF!),0) -> 
B46: Day Shift Calculation (10 hour shift) | D46: Monday to Sunday | E46: Grade
E47: A | F47: B | G47: C
B48: Day Shift | C48: excluding nightshift | E48: =#REF!-#REF! ->  | F48: =#REF!-#REF! ->  | G48: =#REF!-#REF! -> 
B49: 14% tax | C49: inclusive | E49: =E48*14% ->  | F49: =F48*14% ->  | G49: =G48*14% -> 
B50: =B61 -> Total Direct Cost | C50: =C48 -> excluding nightshift | D50: Per guard | E50: =E48+E49 ->  | F50: =F48+F49 ->  | G50: =G48+G49 -> 
B51: Guards | E51: =#REF! ->  | F51: =#REF! ->  | G51: =#REF! -> 
B52: =B50 -> Total Direct Cost | C52: =C50 -> excluding nightshift | D52: =D63 -> per month | E52: =E50*E51 ->  | F52: =F50*F51 ->  | G52: =G50*G51 -> 
B53: =B64 -> Overheads | C53: =C64 -> (please complete your percentage above in E3) | E53: =E52*#REF! ->  | F53: =F52*#REF! ->  | G53: =G52*#REF! -> 
B54: Total Cost per month | C54: =B46 -> Day Shift Calculation (10 hour shift) | D54: =D46 -> Monday to Sunday | E54: =SUM(E52:E53) ->  | F54: =SUM(F52:F53) ->  | G54: =SUM(G52:G53) -> 
E55: =IF(E50,E50+(E50*#REF!),0) ->  | F55: =IF(F50,F50+(F50*#REF!),0) ->  | G55: =IF(G50,G50+(G50*#REF!),0) -> 
B57: Night Shift Calculation (10 hour shift) | D57: Monday to Sunday | E57: Grade
E58: A | F58: B | G58: C
B59: Night Shift | E59: =#REF! ->  | F59: =#REF! ->  | G59: =#REF! -> 
B60: 14% tax | C60: inclusive | E60: =E59*14% ->  | F60: =F59*14% ->  | G60: =G59*14% -> 
B61: Total Direct Cost | D61: Per guard | E61: =E59+E60 ->  | F61: =F59+F60 ->  | G61: =G59+G60 -> 
B62: Guards | E62: =#REF! ->  | F62: =#REF! ->  | G62: =#REF! -> 
B63: =B61 -> Total Direct Cost | D63: per month | E63: =E61*E62 ->  | F63: =F61*F62 ->  | G63: =G61*G62 -> 
B64: Overheads | C64: (please complete your percentage above in E3) | E64: =E63*#REF! ->  | F64: =F63*#REF! ->  | G64: =G63*#REF! -> 
B65: Total Cost per month | C65: =B57 -> Night Shift Calculation (10 hour shift) | D65: =D57 -> Monday to Sunday | E65: =SUM(E63:E64) ->  | F65: =SUM(F63:F64) ->  | G65: =SUM(G63:G64) -> 
E66: =IF(E61,E61+(E61*#REF!),0) ->  | F66: =IF(F61,F61+(F61*#REF!),0) ->  | G66: =IF(G61,G61+(G61*#REF!),0) -> 
B68: Night Shift Calculation | D68: Weekends and Public Holidays Only | E68: Grade
E69: A | F69: B | G69: C
B70: Night Shift | C70: excluding ordinary time | E70: =SUM(#REF!) ->  | F70: =SUM(#REF!) ->  | G70: =SUM(#REF!) -> 
B71: 14% tax | C71: inclusive | E71: =E70*14% ->  | F71: =F70*14% ->  | G71: =G70*14% -> 
B72: Total Direct Cost | D72: Per guard | E72: =E70+E71 ->  | F72: =F70+F71 ->  | G72: =G70+G71 -> 
B73: Guards | E73: =#REF! ->  | F73: =#REF! ->  | G73: =#REF! -> 
B74: =B72 -> Total Direct Cost | D74: per month | E74: =E72*E73 ->  | F74: =F72*F73 ->  | G74: =G72*G73 -> 
B75: Overheads | C75: (please complete your percentage above in E3) | E75: =E74*#REF! ->  | F75: =F74*#REF! ->  | G75: =G74*#REF! -> 
B76: Total Cost per month | C76: =B68 -> Night Shift Calculation | D76: =D68 -> Weekends and Public Holidays Only | E76: =SUM(E74:E75) ->  | F76: =SUM(F74:F75) ->  | G76: =SUM(G74:G75) -> 
E77: =IF(E72,E72+(E72*#REF!),0) ->  | F77: =IF(F72,F72+(F72*#REF!),0) ->  | G77: =IF(G72,G72+(G72*#REF!),0) -> 
B79: Day Shift Calculation | D79: =D68 -> Weekends and Public Holidays Only | E79: Grade
E80: A | F80: B | G80: C
B81: Day Shift | C81: excluding ordinary time and nightshift | E81: =SUM(#REF!)-#REF! ->  | F81: =SUM(#REF!)-#REF! ->  | G81: =SUM(#REF!)-#REF! -> 
B82: 14% tax | C82: inclusive | E82: =E81*14% ->  | F82: =F81*14% ->  | G82: =G81*14% -> 
B83: =B72 -> Total Direct Cost | C83: =C81 -> excluding ordinary time and nightshift | D83: Per guard | E83: =E81+E82 ->  | F83: =F81+F82 ->  | G83: =G81+G82 -> 
B84: Guards | E84: =#REF! ->  | F84: =#REF! ->  | G84: =#REF! -> 
B85: =B83 -> Total Direct Cost | C85: =C83 -> excluding ordinary time and nightshift | D85: =#REF! ->  | E85: =E83*E84 ->  | F85: =F83*F84 ->  | G85: =G83*G84 -> 
B86: =B75 -> Overheads | C86: =C75 -> (please complete your percentage above in E3) | E86: =E85*#REF! ->  | F86: =F85*#REF! ->  | G86: =G85*#REF! -> 
B87: Total Cost per month | C87: =B79 -> Day Shift Calculation | D87: =D79 -> Weekends and Public Holidays Only | E87: =SUM(E85:E86) ->  | F87: =SUM(F85:F86) ->  | G87: =SUM(G85:G86) -> 
E88: =IF(E83,E83+(E83*#REF!),0) ->  | F88: =IF(F83,F83+(F83*#REF!),0) ->  | G88: =IF(G83,G83+(G83*#REF!),0) -> 
B90: Total cost per guard per month | E90: Total Cost per month per Grade
E91: =SUM(E30,E41,E74,E85,E8,E19,E52,E63) ->  | F91: =SUM(F30,F41,F74,F85,F8,F19,F52,F63) ->  | G91: =SUM(G30,G41,G74,G85,G8,G19,G52,G63) ->  | I91: =SUM(E91:H91) -> 
E92: =E32+E43+E76+E87+E10+E21+E54+E65 ->  | F92: =F32+F43+F76+F87+F10+F21+F54+F65 ->  | G92: =G32+G43+G76+G87+G10+G21+G54+G65 ->  | I92: =SUM(E92:H92) -> 
E93: =E29+E40+E73+E84+E7+E18+E62+E51 ->  | F93: =F29+F40+F73+F84+F7+F18+F62+F51 ->  | G93: =G29+G40+G73+G84+G7+G18+G62+G51 ->  | I93: =I91+('Urban Calculation'!I91*#REF!) -> 
B94: Back to Legend

Sheet Rural Calculation (hidden)
B2: Day Shift Calculation | D2: Monday to Sunday | E2: Grade
E3: A | F3: B | G3: C
B4: Day Shift | C4: excluding nightshift | E4: =#REF!-#REF! ->  | F4: =#REF!-#REF! ->  | G4: =#REF!-#REF! -> 
B5: 14% tax | C5: inclusive | E5: =E4*14% ->  | F5: =F4*14% ->  | G5: =G4*14% -> 
B6: =B17 -> Total Direct Cost | C6: =C4 -> excluding nightshift | D6: Per guard | E6: =E4+E5 ->  | F6: =F4+F5 ->  | G6: =G4+G5 -> 
B7: Guards | E7: =#REF! ->  | F7: =#REF! ->  | G7: =#REF! -> 
B8: =B6 -> Total Direct Cost | C8: =C6 -> excluding nightshift | D8: =D19 -> per month | E8: =E6*E7 ->  | F8: =F6*F7 ->  | G8: =G6*G7 -> 
B9: =B20 -> Overheads | C9: =C20 -> (please complete your percentage above in E3) | E9: =E8*#REF! ->  | F9: =F8*#REF! ->  | G9: =G8*#REF! -> 
B10: Total Cost per month | C10: =B2 -> Day Shift Calculation | D10: =D2 -> Monday to Sunday | E10: =SUM(E8:E9) ->  | F10: =SUM(F8:F9) ->  | G10: =SUM(G8:G9) -> 
E11: =IF(E6,E6+(E6*#REF!),0) ->  | F11: =IF(F6,F6+(F6*#REF!),0) ->  | G11: =IF(G6,G6+(G6*#REF!),0) -> 
B13: Night Shift Calculation | D13: Monday to Sunday | E13: Grade
E14: A | F14: B | G14: C
B15: Night Shift | E15: =#REF! ->  | F15: =#REF! ->  | G15: =#REF! -> 
B16: 14% tax | C16: inclusive | E16: =E15*14% ->  | F16: =F15*14% ->  | G16: =G15*14% -> 
B17: Total Direct Cost | D17: Per guard | E17: =E15+E16 ->  | F17: =F15+F16 ->  | G17: =G15+G16 -> 
B18: Guards | E18: =#REF! ->  | F18: =#REF! ->  | G18: =#REF! -> 
B19: =B17 -> Total Direct Cost | D19: per month | E19: =E17*E18 ->  | F19: =F17*F18 ->  | G19: =G17*G18 -> 
B20: Overheads | C20: (please complete your percentage above in E3) | E20: =E19*#REF! ->  | F20: =F19*#REF! ->  | G20: =G19*#REF! -> 
B21: Total Cost per month | C21: =B13 -> Night Shift Calculation | D21: =D13 -> Monday to Sunday | E21: =SUM(E19:E20) ->  | F21: =SUM(F19:F20) ->  | G21: =SUM(G19:G20) -> 
E22: =IF(E17,E17+(E17*#REF!),0) ->  | F22: =IF(F17,F17+(F17*#REF!),0) ->  | G22: =IF(G17,G17+(G17*#REF!),0) -> 
B24: Day Shift Calculation | D24: Monday to Friday | E24: Grade
E25: A | F25: B | G25: C
B26: Day Shift | C26: excluding Night allowance, Sunday allowance and public holidays | E26: =#REF!-#REF!-#REF!-#REF! ->  | F26: =#REF!-#REF!-#REF!-#REF! ->  | G26: =#REF!-#REF!-#REF!-#REF! -> 
B27: 14% tax | C27: inclusive | E27: =E26*14% ->  | F27: =F26*14% ->  | G27: =G26*14% -> 
B28: Total Direct Cost | D28: Per guard | E28: =E26+E27 ->  | F28: =F26+F27 ->  | G28: =G26+G27 -> 
B29: Guards | E29: =#REF! ->  | F29: =#REF! ->  | G29: =#REF! -> 
B30: =B19 -> Total Direct Cost | D30: per month | E30: =E28*E29 ->  | F30: =F28*F29 ->  | G30: =G28*G29 -> 
B31: Overheads | C31: (please complete your percentage above in E3) | E31: =E30*#REF! ->  | F31: =F30*#REF! ->  | G31: =G30*#REF! -> 
B32: Total Cost per month | C32: =B24 -> Day Shift Calculation | D32: =D24 -> Monday to Friday | E32: =SUM(E30:E31) ->  | F32: =SUM(F30:F31) ->  | G32: =SUM(G30:G31) -> 
E33: =IF(E28,E28+(E28*#REF!),0) ->  | F33: =IF(F28,F28+(F28*#REF!),0) ->  | G33: =IF(G28,G28+(G28*#REF!),0) -> 
B35: Night Shift Calculation | D35: Monday to Friday | E35: Grade
E36: A | F36: B | G36: C
B37: Night Shift | C37: excluding Sunday allowance and public holidays | E37: =#REF!-#REF!-#REF! ->  | F37: =#REF!-#REF!-#REF! ->  | G37: =#REF!-#REF!-#REF! -> 
B38: 14% tax | C38: inclusive | E38: =E37*14% ->  | F38: =F37*14% ->  | G38: =G37*14% -> 
B39: Total Direct Cost | D39: Per guard | E39: =E37+E38 ->  | F39: =F37+F38 ->  | G39: =G37+G38 -> 
B40: Guards | E40: =#REF! ->  | F40: =#REF! ->  | G40: =#REF! -> 
B41: =B39 -> Total Direct Cost | D41: per month | E41: =E39*E40 ->  | F41: =F39*F40 ->  | G41: =G39*G40 -> 
B42: Overheads | C42: (please complete your percentage above in E3) | E42: =E41*#REF! ->  | F42: =F41*#REF! ->  | G42: =G41*#REF! -> 
B43: Total Cost per month | C43: =B35 -> Night Shift Calculation | D43: =D35 -> Monday to Friday | E43: =SUM(E41:E42) ->  | F43: =SUM(F41:F42) ->  | G43: =SUM(G41:G42) -> 
E44: =IF(E39,E39+(E39*#REF!),0) ->  | F44: =IF(F39,F39+(F39*#REF!),0) ->  | G44: =IF(G39,G39+(G39*#REF!),0) -> 
B46: Day Shift Calculation (10 hour shift) | D46: Monday to Sunday | E46: Grade
E47: A | F47: B | G47: C
B48: Day Shift | C48: excluding nightshift | E48: =#REF!-#REF! ->  | F48: =#REF!-#REF! ->  | G48: =#REF!-#REF! -> 
B49: 14% tax | C49: inclusive | E49: =E48*14% ->  | F49: =F48*14% ->  | G49: =G48*14% -> 
B50: =B61 -> Total Direct Cost | C50: =C48 -> excluding nightshift | D50: Per guard | E50: =E48+E49 ->  | F50: =F48+F49 ->  | G50: =G48+G49 -> 
B51: Guards | E51: =#REF! ->  | F51: =#REF! ->  | G51: =#REF! -> 
B52: =B50 -> Total Direct Cost | C52: =C50 -> excluding nightshift | D52: =D63 -> per month | E52: =E50*E51 ->  | F52: =F50*F51 ->  | G52: =G50*G51 -> 
B53: =B64 -> Overheads | C53: =C64 -> (please complete your percentage above in E3) | E53: =E52*#REF! ->  | F53: =F52*#REF! ->  | G53: =G52*#REF! -> 
B54: Total Cost per month | C54: =B46 -> Day Shift Calculation (10 hour shift) | D54: =D46 -> Monday to Sunday | E54: =SUM(E52:E53) ->  | F54: =SUM(F52:F53) ->  | G54: =SUM(G52:G53) -> 
E55: =IF(E50,E50+(E50*#REF!),0) ->  | F55: =IF(F50,F50+(F50*#REF!),0) ->  | G55: =IF(G50,G50+(G50*#REF!),0) -> 
B57: Night Shift Calculation (10 hour shift) | D57: Monday to Sunday | E57: Grade
E58: A | F58: B | G58: C
B59: Night Shift | E59: =#REF! ->  | F59: =#REF! ->  | G59: =#REF! -> 
B60: 14% tax | C60: inclusive | E60: =E59*14% ->  | F60: =F59*14% ->  | G60: =G59*14% -> 
B61: Total Direct Cost | D61: Per guard | E61: =E59+E60 ->  | F61: =F59+F60 ->  | G61: =G59+G60 -> 
B62: Guards | E62: =#REF! ->  | F62: =#REF! ->  | G62: =#REF! -> 
B63: =B61 -> Total Direct Cost | D63: per month | E63: =E61*E62 ->  | F63: =F61*F62 ->  | G63: =G61*G62 -> 
B64: Overheads | C64: (please complete your percentage above in E3) | E64: =E63*#REF! ->  | F64: =F63*#REF! ->  | G64: =G63*#REF! -> 
B65: Total Cost per month | C65: =B57 -> Night Shift Calculation (10 hour shift) | D65: =D57 -> Monday to Sunday | E65: =SUM(E63:E64) ->  | F65: =SUM(F63:F64) ->  | G65: =SUM(G63:G64) -> 
E66: =IF(E61,E61+(E61*#REF!),0) ->  | F66: =IF(F61,F61+(F61*#REF!),0) ->  | G66: =IF(G61,G61+(G61*#REF!),0) -> 
B68: Night Shift Calculation | D68: Weekends and Public Holidays Only | E68: Grade
E69: A | F69: B | G69: C
B70: Night Shift | C70: excluding ordinary time | E70: =SUM(#REF!) ->  | F70: =SUM(#REF!) ->  | G70: =SUM(#REF!) -> 
B71: 14% tax | C71: inclusive | E71: =E70*14% ->  | F71: =F70*14% ->  | G71: =G70*14% -> 
B72: Total Direct Cost | D72: Per guard | E72: =E70+E71 ->  | F72: =F70+F71 ->  | G72: =G70+G71 -> 
B73: Guards | E73: =#REF! ->  | F73: =#REF! ->  | G73: =#REF! -> 
B74: =B72 -> Total Direct Cost | D74: per month | E74: =E72*E73 ->  | F74: =F72*F73 ->  | G74: =G72*G73 -> 
B75: Overheads | C75: (please complete your percentage above in E3) | E75: =E74*#REF! ->  | F75: =F74*#REF! ->  | G75: =G74*#REF! -> 
B76: Total Cost per month | C76: =B68 -> Night Shift Calculation | D76: =D68 -> Weekends and Public Holidays Only | E76: =SUM(E74:E75) ->  | F76: =SUM(F74:F75) ->  | G76: =SUM(G74:G75) -> 
E77: =IF(E72,E72+(E72*#REF!),0) ->  | F77: =IF(F72,F72+(F72*#REF!),0) ->  | G77: =IF(G72,G72+(G72*#REF!),0) -> 
B79: Day Shift Calculation | D79: =D68 -> Weekends and Public Holidays Only | E79: Grade
E80: A | F80: B | G80: C
B81: Day Shift | C81: excluding ordinary time and nightshift | E81: =SUM(#REF!)-#REF! ->  | F81: =SUM(#REF!)-#REF! ->  | G81: =SUM(#REF!)-#REF! -> 
B82: 14% tax | C82: inclusive | E82: =E81*14% ->  | F82: =F81*14% ->  | G82: =G81*14% -> 
B83: =B72 -> Total Direct Cost | C83: =C81 -> excluding ordinary time and nightshift | D83: Per guard | E83: =E81+E82 ->  | F83: =F81+F82 ->  | G83: =G81+G82 -> 
B84: Guards | E84: =#REF! ->  | F84: =#REF! ->  | G84: =#REF! -> 
B85: =B83 -> Total Direct Cost | C85: =C83 -> excluding ordinary time and nightshift | D85: =#REF! ->  | E85: =E83*E84 ->  | F85: =F83*F84 ->  | G85: =G83*G84 -> 
B86: =B75 -> Overheads | C86: =C75 -> (please complete your percentage above in E3) | E86: =E85*#REF! ->  | F86: =F85*#REF! ->  | G86: =G85*#REF! -> 
B87: Total Cost per month | C87: =B79 -> Day Shift Calculation | D87: =D79 -> Weekends and Public Holidays Only | E87: =SUM(E85:E86) ->  | F87: =SUM(F85:F86) ->  | G87: =SUM(G85:G86) -> 
E88: =IF(E83,E83+(E83*#REF!),0) ->  | F88: =IF(F83,F83+(F83*#REF!),0) ->  | G88: =IF(G83,G83+(G83*#REF!),0) -> 
B90: Total cost per guard per month | E90: Total Cost per month per Grade
E91: =SUM(E30,E41,E74,E85,E8,E19,E52,E63) ->  | F91: =SUM(F30,F41,F74,F85,F8,F19,F52,F63) ->  | G91: =SUM(G30,G41,G74,G85,G8,G19,G52,G63) ->  | I91: =SUM(E91:H91) -> 
E92: =E32+E43+E76+E87+E10+E21+E54+E65 ->  | F92: =F32+F43+F76+F87+F10+F21+F54+F65 ->  | G92: =G32+G43+G76+G87+G10+G21+G54+G65 ->  | I92: =SUM(E92:H92) -> 
E93: =E29+E40+E73+E84+E7+E18+E62+E51 ->  | F93: =F29+F40+F73+F84+F7+F18+F62+F51 ->  | G93: =G29+G40+G73+G84+G7+G18+G62+G51 ->  | I93: =I91+('Urban Calculation'!I91*#REF!) -> 
B94: Back to Legend

Sheet Stellenbosch
A1: YEAR 1
A2: Stellenbosch Sub District | D2: Estimated Amount of staff | E2: Rate per hour VAT Inclusive in South African Rand | F2: Monthly Rate per staff VAT Inclusive in South African Rand | G2: Total Bid Price Montly rate x number of staff x 12 months)
A3: Rendering of cleaning Services: Cleaners | D3: =SUM(D4:D20) -> 27
A4: Don & Pat Bilton Clinic | B4: Day Shift | C4: Monday to Friday (8 hours) ex PHD | D4: 1 | G4: =D4*F4*12 -> 0
A5: Groendal Clinic | B5: Day Shift | C5: Monday to Friday (8 hours) ex PHD | D5: 2 | G5: =D5*F5*12 -> 0
A6: Dirkie Uys Satellite Clinic | B6: Day Shift | C6: Monday to Friday (8 hours) ex PHD | G6: 0
A7: Idas Valley Clinic | B7: Day Shift | C7: Monday to Friday (8 hours) ex PHD | D7: 2 | G7: 0
A8: Klapmuts Clinic | B8: Day Shift | C8: Monday to Friday (8 hours) ex PHD | D8: 2 | G8: 0
A9: Kylemore Clinic | B9: Day Shift | C9: Monday to Friday (8 hours) ex PHD | D9: 2 | G9: 0
A10: Aan-het Pad Clinic | B10: Day Shift | C10: Monday to Friday (8 hours) ex PHD | G10: 0
A11: Kayamandi Clinic | B11: Day Shift | C11: Monday to Friday (8 hours) ex PHD | D11: 2 | G11: 0
A12: Pniel Satelite Clinic | B12: Day Shift | C12: Monday to Friday (8 hours) ex PHD | G12: 0
A13: Cloetesville Community Day Centre | B13: Day Shift | C13: Monday to Friday (8 hours) ex PHD | D13: 2 | G13: 0
A14: Stellenbosch Hospital | B14: Day Shift | C14: Monday to Sunday (12 hours) | D14: 4 | G14: 0
A15: Stellenbosch Hospital | B15: Night Shift | C15: Monday to Sunday (12 hours) | D15: 2 | G15: 0
A16: Stellenbosch Hospital,EMS | B16: Day Shift | C16: Monday to Friday (8 hours) ex PHD | D16: 7 | G16: =D16*F16*12 -> 0
A17: Stellenbosch Hospital,EMS | B17: Day Shift | C17: Monday to Friday (8 hours) ex PHD | G17: 0
A18: Rendering of cleaning Services: Supervisor/Team leader and Manager
A19: Stellenbosch Hospital- Manager | B19: Day Shift | C19: Monday to Friday (8 hours) ex PHD | G19: =D19*F19*12 -> 0
A20: Stellenbosch Hospital- Supervisor | B20: Day Shift | C20: Monday to Friday (8 hours) ex PHD | D20: 1 | G20: 0
A21: Equipment, PPE and Consumables | F21: Monthly Rate VAT Inclusive in South African Rand | G21: Total Bid Price Montly rate x number of staff x 12 months)
A22: Don & Pat Bilton Clinic | B22: Per month | G22: =F22*12 -> 0
A23: Groendal Clinic | B23: Per month | G23: =F23*12 -> 0
A24: Dirkie Uys Satellite Clinic | B24: Per month | G24: 0
A25: Idas Valley Clinic | B25: Per month | G25: 0
A26: Klapmuts Clinic | B26: Per month | G26: 0
A27: Kylemore Clinic | B27: Per month | G27: 0
A28: Aan-het Pad Clinic | B28: Per month | G28: 0
A29: Kayamandi Clinic | B29: Per month | G29: 0
A30: Pniel Satelite Clinic | B30: Per month | G30: 0
A31: Cloetesville Community Day Centre | B31: Per month | G31: 0
A32: Stellenbosch Hospital | B32: Per month | G32: 0
A33: Admin and Profit
A34: Stellenbosch Sub District | B34: Per month
A36: TOTAL LUMPSUM | F36: =SUM(F4:F34) -> 0 | G36: =SUM(G22:G34) -> 0
A38: YEAR 2
A39: Stellenbosch Sub District | D39: Estimated Amount of staff | E39: Rate per hour VAT Inclusive in South African Rand | F39: Monthly Rate per staff VAT Inclusive in South African Rand | G39: Total Bid Price Montly rate x number of staff x 12 months)
A40: Rendering of cleaning Services: Cleaners | D40: =SUM(D41:D57) -> 27
A41: Don & Pat Bilton Clinic | B41: Day Shift | C41: Monday to Friday (8 hours) ex PHD | D41: 1 | G41: =D41*F41*12 -> 0
A42: Groendal Clinic | B42: Day Shift | C42: Monday to Friday (8 hours) ex PHD | D42: 2 | G42: =D42*F42*12 -> 0
A43: Dirkie Uys Satellite Clinic | B43: Day Shift | C43: Monday to Friday (8 hours) ex PHD | G43: 0
A44: Idas Valley Clinic | B44: Day Shift | C44: Monday to Friday (8 hours) ex PHD | D44: 2 | G44: 0
A45: Klapmuts Clinic | B45: Day Shift | C45: Monday to Friday (8 hours) ex PHD | D45: 2 | G45: 0
A46: Kylemore Clinic | B46: Day Shift | C46: Monday to Friday (8 hours) ex PHD | D46: 2 | G46: 0
A47: Aan-het Pad Clinic | B47: Day Shift | C47: Monday to Friday (8 hours) ex PHD | G47: 0
A48: Kayamandi Clinic | B48: Day Shift | C48: Monday to Friday (8 hours) ex PHD | D48: 2 | G48: 0
A49: Pniel Satelite Clinic | B49: Day Shift | C49: Monday to Friday (8 hours) ex PHD | G49: 0
A50: Cloetesville Community Day Centre | B50: Day Shift | C50: Monday to Friday (8 hours) ex PHD | D50: 2 | G50: 0
A51: Stellenbosch Hospital | B51: Day Shift | C51: Monday to Sunday (12 hours) | D51: 4 | G51: 0
A52: Stellenbosch Hospital | B52: Night Shift | C52: Monday to Sunday (12 hours) | D52: 2 | G52: 0
A53: Stellenbosch Hospital,EMS | B53: Day Shift | C53: Monday to Friday (8 hours) ex PHD | D53: 7 | G53: =D53*F53*12 -> 0
A54: Stellenbosch Hospital,EMS | B54: Day Shift | C54: Monday to Friday (8 hours) ex PHD | G54: 0
A55: Rendering of cleaning Services: Supervisor/Team leader and Manager
A56: Stellenbosch Hospital- Manager | B56: Day Shift | C56: Monday to Friday (8 hours) ex PHD | G56: =D56*F56*12 -> 0
A57: Stellenbosch Hospital- Supervisor | B57: Day Shift | C57: Monday to Friday (8 hours) ex PHD | D57: 1 | G57: 0
A58: Equipment, PPE and Consumables | F58: Monthly Rate VAT Inclusive in South African Rand | G58: Total Bid Price Montly rate x number of staff x 12 months)
A59: Don & Pat Bilton Clinic | B59: Per month | G59: =F59*12 -> 0
A60: Groendal Clinic | B60: Per month | G60: =F60*12 -> 0
A61: Dirkie Uys SatelliteClinic | B61: Per month | G61: 0
A62: Idas Valley Clinic | B62: Per month | G62: 0
A63: Klapmuts Clinic | B63: Per month | G63: 0
A64: Kylemore Clinic | B64: Per month | G64: 0
A65: Aan-het Pad Clinic | B65: Per month | G65: 0
A66: Kayamandi Clinic | B66: Per month | G66: 0
A67: Pniel Satelite Clinic | B67: Per month | G67: 0
A68: Cloetesville Community Day Centre | B68: Per month | G68: 0
A69: Stellenbosch Hospital | B69: Per month | G69: 0
A70: Admin and Profit
A71: Stellenbosch Sub District | B71: Per month
A73: TOTAL LUMPSUM | F73: =SUM(F41:F71) -> 0
A74: YEAR 3
A75: Stellenbosch Sub District | D75: Estimated Amount of staff | E75: Rate per hour VAT Inclusive in South African Rand | F75: Monthly Rate per staff VAT Inclusive in South African Rand | G75: Total Bid Price Montly rate x number of staff x 12 months)
A76: Rendering of cleaning Services: Cleaners | D76: =SUM(D77:D93) -> 27
A77: Don & Pat Bilton Clinic | B77: Day Shift | C77: Monday to Friday (8 hours) ex PHD | D77: 1 | G77: =D77*F77*12 -> 0
A78: Groendal Clinic | B78: Day Shift | C78: Monday to Friday (8 hours) ex PHD | D78: 2 | G78: =D78*F78*12 -> 0
A79: Dirkie Uys Satellite Clinic | B79: Day Shift | C79: Monday to Friday (8 hours) ex PHD | G79: 0
A80: Idas Valley Clinic | B80: Day Shift | C80: Monday to Friday (8 hours) ex PHD | D80: 2 | G80: 0
A81: Klapmuts Clinic | B81: Day Shift | C81: Monday to Friday (8 hours) ex PHD | D81: 2 | G81: 0
A82: Kylemore Clinic | B82: Day Shift | C82: Monday to Friday (8 hours) ex PHD | D82: 2 | G82: 0
A83: Aan-het Pad Clinic | B83: Day Shift | C83: Monday to Friday (8 hours) ex PHD | G83: 0
A84: Kayamandi Clinic | B84: Day Shift | C84: Monday to Friday (8 hours) ex PHD | D84: 2 | G84: 0
A85: Pniel Satelite Clinic | B85: Day Shift | C85: Monday to Friday (8 hours) ex PHD | G85: 0
A86: Cloetesville Community Day Centre | B86: Day Shift | C86: Monday to Friday (8 hours) ex PHD | D86: 2 | G86: 0
A87: Stellenbosch Hospital | B87: Day Shift | C87: Monday to Sunday (12 hours) | D87: 4 | G87: 0
A88: Stellenbosch Hospital | B88: Night Shift | C88: Monday to Sunday (12 hours) | D88: 2 | G88: 0
A89: Stellenbosch Hospital | B89: Day Shift | C89: Monday to Friday (8 hours) ex PHD | D89: 7 | G89: =D89*F89*12 -> 0
A90: Stellenbosch Hospital,EMS | B90: Day Shift | C90: Monday to Friday (8 hours) ex PHD | G90: 0
A91: Rendering of cleaning Services: Supervisor/Team leader and Manager
A92: Stellenbosch Hospital- Manager | B92: Day Shift | C92: Monday to Friday (8 hours) ex PHD | G92: =D92*F92*12 -> 0
A93: Stellenbosch Hospital- Supervisor | B93: Day Shift | C93: Monday to Friday (8 hours) ex PHD | D93: 1 | G93: 0
A94: Equipment, PPE and Consumables | F94: Monthly Rate VAT Inclusive in South African Rand | G94: Total Bid Price Montly rate x number of staff x 6 months)
A95: Don & Pat Bilton Clinic | B95: Per month | G95: =F95*6 -> 0
A96: Groendal Clinic | B96: Per month | G96: =F96*6 -> 0
A97: Dirkie Uys Satellite Clinic | B97: Per month | G97: 0
A98: Idas Valley Clinic | B98: Per month | G98: 0
A99: Klapmuts Clinic | B99: Per month | G99: 0
A100: Kylemore Clinic | B100: Per month | G100: 0
A101: Aan-het Pad Clinic | B101: Per month | G101: 0
A102: Kayamandi Clinic | B102: Per month | G102: 0
A103: Pniel Satelite Clinic | B103: Per month | G103: 0
A104: Cloetesville Community Day Centre | B104: Per month | G104: 0
A105: Stellenbosch Hospital | B105: Per month | G105: 0
A106: Admin and Profit
A107: Stellenbosch Sub District | B107: Per month | G107: =F107*6 -> 0
A109: TOTAL LUMPSUM | F109: =SUM(F77:F107) -> 0 | G109: =SUM(G95:G107) -> 0
A111: 1ST YEAR | B111: 2ND YEAR | D111: 3RD YEAR
A112: (INCLUSIVE OF VAT) | B112: (INCLUSIVE OF VAT) | D112: (INCLUSIVE OF VAT)
A114: Total cost per month | B114: Total cost per month | D114: Total cost per month
A116: Total cost per year | B116: Total cost per year | D116: Total cost per year
A117: Total all-inclusive cost for three (30) Monthss: R (included VAT)
A123: ADHOC SERVICES
A125: Cleaning and/or moving of items between areas; and/or deep cleaning; and/or relief duties. Please indicate the hourly rate per person( only labour) | B125: 07H00-16h00 | C125: Monday - Friday ( exl public holidays) | E125: CLEANER | F125: R….......(per hour)
B126: 07H00-16h00 | C126: Saturday - Sunday( excl public holidays) | E126: CLEANER | F126: R….......(per hour)
B127: 07H00-16h00 | C127: Public holiday | E127: CLEANER | F127: R….......(per hour)
